bitfinex/quotes_ETHUSD_20240604
["timestamp","ask_amount","ask_price","bid_price","bid_amount"]
[1717501669111,3.57434523,3764.5,3764.1,0.87696774]
[1717501669311,0.57434523,3764.4,3764.1,0.06996774]
[1717501669541,3.0,3764.5,3764.3,0.807]
[1717501669841,0.5743228,3764.4,3764.3,0.807]
[1717501670238,0.5743228,3764.4,3764.3,0.87679423]
[1717501670820,0.5743228,3764.4,3764.3,0.807]
[1717501671947,0.57433657,3764.4,3764.3,0.807]
[1717501672683,0.57433657,3764.4,3764.3,0.87654226]
[1717501672841,0.57433657,3764.4,3764.3,0.807]
[1717501673221,0.57433657,3764.4,3764.3,0.87654226]
[1717501678767,0.57433095,3764.4,3764.3,0.87654226]
[1717501679947,0.57432161,3764.4,3764.3,0.87654226]
[1717501680464,0.57432161,3764.4,3764.3,0.06954226]
[1717501680770,0.57432161,3764.4,3764.3,0.807]
[1717501680977,0.57432161,3764.4,3764.3,0.87649683]
[1717501686083,0.57432161,3764.4,3764.3,0.06949683]
[1717501686282,0.57432161,3764.4,3764.3,0.87649683]
[1717501686499,0.57432161,3764.4,3764.3,0.807]
[1717501686723,0.57432161,3764.4,3764.3,0.8764514]
[1717501687566,0.57432161,3764.4,3764.3,0.0694514]
[1717501687823,0.57432161,3764.4,3764.3,0.807]
[1717501691310,3.23081592,3764.4,3764.3,0.807]
[1717501693833,3.23081592,3764.4,3764.3,0.87656702]
[1717501694001,3.23081592,3764.4,3764.3,1.19078372]
[1717501694529,0.57435592,3764.4,3764.3,1.19078372]
[1717501698432,1.32435592,3764.4,3764.3,1.19078372]
[1717501698631,0.75,3764.4,3764.3,1.19078372]
[1717501699292,1.32427994,3764.4,3764.3,1.19078372]
[1717501699488,0.57427994,3764.8,3764.3,2.11409067]
[1717501699807,1.32427994,3764.7,3764.4,0.89750591]
[1717501700012,0.57427994,3764.6,3764.5,0.06945137]
[1717501700224,0.57427994,3764.6,3764.5,0.87645137]
[1717501700541,0.57427994,3764.8,3764.5,0.87645137]
[1717501700847,3.0,3764.9,3764.7,0.807]
[1717501701053,0.57425717,3764.8,3764.7,0.807]
[1717501701543,0.57425717,3764.8,3764.7,0.87645137]
[1717501703367,0.57427635,3764.8,3764.7,0.87645137]
[1717501706055,0.57427635,3764.8,3764.7,1.0538471]
[1717501706419,0.57427635,3764.9,3764.7,3.4908471]
[1717501706773,0.57427635,3764.9,3764.8,0.807]
[1717501706927,0.57421183,3764.9,3764.8,0.807]
[1717501707123,0.57421183,3764.9,3764.8,1.36368503]
[1717501707536,2.65605,3765.0,3764.8,1.36368503]
[1717501707941,0.57421302,3764.9,3764.8,1.36368503]
[1717501708120,0.57421302,3764.9,3764.8,0.55668503]
[1717501708347,2.65605,3765.0,3764.8,1.36368503]
[1717501708954,0.57422433,3764.9,3764.8,1.36368503]
[1717501710462,2.65605,3765.0,3764.8,1.36368503]
[1717501710965,2.65584,3765.3,3764.8,1.36368503]
[1717501711125,3.57419154,3765.2,3764.8,0.06910448]
[1717501711471,3.0,3765.2,3765.1,0.807]
[1717501712552,3.57417922,3765.2,3765.1,0.87610448]
[1717501714579,3.57419204,3765.2,3765.1,0.87610448]
[1717501716439,0.57419204,3765.2,3765.1,0.87610448]
[1717501716852,0.57419204,3765.2,3765.1,0.807]
[1717501722923,0.57420773,3765.2,3764.4,4.04123756]
[1717501723121,0.57420773,3765.2,3765.1,0.87585674]
[1717501723299,0.57420833,3765.2,3765.1,0.807]
[1717501723494,0.57420833,3765.2,3765.1,0.87585674]
[1717501729649,5.31,3765.6,3765.1,3.22335674]
[1717501729865,0.75,3765.5,3765.1,3.22335674]
[1717501730027,2.4584,3766.1,3765.2,1.24545492]
[1717501730230,2.4584,3766.1,3766.0,0.807]
[1717501730442,3.2084,3766.1,3766.0,0.807]
[1717501731232,6.2084,3766.1,3766.0,0.807]
[1717501736614,3.75,3766.1,3766.0,0.807]
[1717501736786,3.75,3766.1,3766.0,0.87338592]
[1717501737507,3.75,3766.1,3766.0,0.06638592]
[1717501737713,4.638033,3766.1,3766.0,0.87338592]
[1717501737887,4.638033,3766.1,3766.0,0.807]
[1717501739113,3.75,3766.1,3766.0,0.807]
[1717501740403,3.75,3766.1,3766.0,0.87289115]
[1717501742739,3.75,3766.1,3766.0,0.06589115]
[1717501743038,3.75,3766.1,3766.0,0.807]
[1717501743200,2.65536,3766.0,3765.5,2.3574]
[1717501743398,2.65536,3766.0,3765.9,0.807]
[1717501743600,5.65536,3766.0,3765.9,0.807]
[1717501749452,5.65536,3766.0,3765.5,2.3574]
[1717501749654,5.65536,3766.0,3765.9,0.807]
[1717501754947,10.41622,3766.5,3765.9,0.807]
[1717501755256,10.41622,3766.5,3765.5,5.01302]
[1717501755257,0.75,3766.1,3765.5,5.01302]
[1717501755421,2.65513,3766.3,3766.0,0.807]
[1717501755618,3.40513,3766.3,3766.2,0.807]
[1717501755823,6.40513,3766.3,3765.6,0.501302]
[1717501756019,3.40513,3766.3,3766.2,0.807]
[1717501756216,6.40513,3766.3,3766.2,0.807]
[1717501757851,2.65544,3765.9,3765.3,2.2601]
[1717501758053,2.65544,3765.9,3765.8,0.807]
[1717501758449,2.65544,3765.9,3765.8,0.87264769]
[1717501761652,2.65544,3765.9,3765.8,0.06564769]
[1717501761854,2.65576,3765.4,3765.1,1.38451181]
[1717501762056,5.14346,3765.4,3765.2,0.06564769]
[1717501762254,5.14346,3765.4,3764.7,3.67315918]
[1717501762255,5.89346,3765.4,3765.3,0.807]
[1717501762454,5.89346,3765.4,3765.3,0.87045819]
[1717501766458,5.89346,3765.4,3765.3,0.06345819]
[1717501766677,5.89346,3765.4,3765.3,0.807]
[1717501766850,5.89346,3765.4,3765.3,0.87045819]
[1717501767858,5.89346,3765.4,3765.3,0.807]
[1717501771650,2.65599,3765.1,3764.4,2.3194]
[1717501771852,2.65599,3765.1,3765.0,0.807]
[1717501772284,2.65599,3765.1,3765.0,0.87059026]
[1717501773790,2.65599,3765.1,3765.0,0.06359026]
[1717501773791,4.92109,3765.1,3765.0,0.06359026]
[1717501773976,8.67109,3765.1,3765.0,0.06359026]
[1717501774384,2.65618,3764.8,3764.7,0.807]
[1717501789171,2.65618,3764.8,3764.7,0.86879146]
[1717501791847,2.65618,3764.8,3764.7,1.20183061]
[1717501792442,5.65598,3765.1,3764.8,2.2834]
[1717501792662,2.65598,3765.1,3765.0,0.807]
[1717501793051,5.65598,3765.1,3765.0,0.86879146]
[1717501793257,5.65598,3765.1,3765.0,0.807]
[1717501793570,5.65598,3765.1,3765.0,1.14934391]
[1717501796703,5.65598,3765.1,3765.0,0.34234391]
[1717501796913,5.65598,3765.1,3765.0,0.807]
[1717501797120,2.65632,3764.6,3763.9,2.468]
[1717501797300,2.65632,3764.6,3764.5,0.807]
[1717501797812,2.65632,3764.6,3764.5,0.8691464]
[1717501799631,2.65632,3764.6,3764.5,0.0621464]
[1717501799927,2.65632,3764.6,3764.5,0.807]
[1717501800310,2.65632,3764.6,3764.5,0.0621464]
[1717501800479,2.65632,3764.6,3764.5,0.807]
[1717501800816,2.65632,3764.6,3764.5,0.8691464]
[1717501801219,3.40632,3764.6,3764.5,0.0621464]
[1717501801598,3.40632,3764.6,3764.4,0.807]
[1717501801842,2.6566,3764.3,3763.9,2.468]
[1717501802017,2.6566,3764.3,3763.9,2.85330164]
[1717501802355,2.6566,3764.3,3764.2,0.807]
[1717501803044,2.6566,3764.3,3764.2,0.86716727]
[1717501804645,2.6566,3764.3,3764.2,0.06016727]
[1717501805049,2.6566,3764.3,3764.2,0.807]
[1717501805366,2.6566,3764.3,3764.2,0.86716727]
[1717501808077,2.6566,3764.3,3764.2,0.06016727]
[1717501808235,5.1011,3764.3,3764.2,0.86716727]
[1717501808433,5.1011,3764.3,3764.2,0.807]
[1717501808434,5.8511,3764.3,3764.2,0.807]
[1717501808673,5.8511,3764.3,3764.2,0.8652878]
[1717501808972,3.4066,3764.3,3764.2,0.8652878]
[1717501811358,2.6566,3764.3,3764.2,0.8652878]
[1717501813270,2.65633,3764.6,3764.2,3.2363878]
[1717501813476,3.0,3764.5,3764.3,0.32363878]
[1717501813792,3.0,3764.5,3764.4,0.807]
[1717501813962,3.0,3764.5,3764.4,0.8652878]
[1717501814403,3.0,3764.5,3764.4,0.0582878]
[1717501814581,3.0,3764.5,3764.4,0.8652878]
[1717501816416,3.0,3764.5,3764.4,1.22129046]
[1717501818817,2.65633,3764.6,3764.4,1.22129046]
[1717501819042,2.65633,3764.6,3764.5,0.9232531]
[1717501819369,0.75,3764.8,3764.5,0.9232531]
[1717501819541,2.65612,3764.9,3764.7,0.807]
[1717501819736,2.65612,3764.9,3764.8,0.22502964]
[1717501819911,2.65612,3764.9,3764.8,0.28331744]
[1717501820759,2.65612,3764.9,3764.8,0.0582878]
[1717501820958,2.65612,3764.9,3764.7,0.807]
[1717501821165,2.65612,3764.9,3764.8,0.0582878]
[1717501821534,2.65612,3764.9,3764.7,0.807]
[1717501821849,2.65612,3764.9,3764.8,0.0582878]
[1717501822566,2.65612,3764.9,3764.7,0.807]
[1717501822765,2.65612,3764.9,3764.8,0.05836213]
[1717501822963,2.65612,3764.9,3764.7,1.06180113]
[1717501823128,2.65612,3764.9,3764.8,0.05836213]
[1717501823328,2.65612,3764.9,3764.7,1.06180113]
[1717501823577,2.65612,3764.9,3764.8,0.05836213]
[1717501824068,2.65612,3764.9,3764.7,1.06180113]
[1717501824395,2.65612,3764.9,3764.8,0.05836213]
[1717501824789,2.65612,3764.9,3764.7,1.06180113]
[1717501824969,2.65612,3764.9,3764.8,0.05836213]
[1717501825437,2.65612,3764.9,3764.7,1.06180113]
[1717501825654,2.65612,3764.9,3764.8,0.05836213]
[1717501826363,2.65612,3764.9,3764.7,0.807]
[1717501826565,2.65612,3764.9,3764.8,0.05836213]
[1717501826763,2.6563,3764.7,3764.2,0.55379804]
[1717501826979,2.6563,3764.7,3764.6,0.807]
[1717501827649,2.6563,3764.7,3764.6,0.86536213]
[1717501831810,2.65606,3765.0,3764.6,0.89043637]
[1717501832021,2.65606,3765.0,3764.9,0.807]
[1717501832506,3.40606,3765.0,3764.9,0.807]
[1717501832795,3.98030398,3765.0,3764.9,0.807]
[1717501833506,3.40606,3765.0,3764.9,0.807]
[1717501837569,3.40606,3765.0,3764.9,0.89053137]
[1717501838304,3.40606,3765.0,3764.9,0.08353137]
[1717501838467,3.40606,3765.0,3764.7,2.3902]
[1717501838669,3.40606,3765.0,3764.9,0.807]
[1717501839115,3.40606,3765.0,3764.9,0.89053137]
[1717501843515,3.40606,3765.0,3764.9,0.08353137]
[1717501843728,3.40606,3765.0,3764.9,0.89053137]
[1717501843936,3.40606,3765.0,3764.9,0.807]
[1717501844226,3.40606,3765.0,3764.9,0.89053137]
[1717501846403,3.98028876,3765.0,3764.9,0.89053137]
[1717501847020,3.40606,3765.0,3764.9,0.89053137]
[1717501847196,3.98028551,3765.0,3764.9,0.89053137]
[1717501847402,2.65606,3765.0,3764.9,0.89053137]
[1717501849183,2.65606,3765.0,3764.9,0.08353137]
[1717501849383,3.23028629,3765.0,3764.9,0.807]
[1717501849691,3.98028629,3765.0,3764.9,0.89051483]
[1717501849931,3.40606,3765.0,3764.9,0.89051483]
[1717501850336,3.98028301,3765.0,3764.9,0.89051483]
[1717501851538,3.40606,3765.0,3764.9,0.89051483]
[1717501851993,3.98029086,3765.0,3764.9,0.89051483]
[1717501854689,3.98029086,3765.0,3764.9,0.08351483]
[1717501854892,3.98029086,3765.0,3764.4,1.38486575]
[1717501855141,3.98029086,3765.0,3764.9,0.807]
[1717501855142,3.40606,3765.0,3764.9,0.807]
[1717501855307,3.98030793,3765.0,3764.9,0.807]
[1717501855500,3.98030793,3765.0,3764.9,0.8905107]
[1717501856008,3.40606,3765.0,3764.9,0.8905107]
[1717501856211,3.98030758,3765.0,3764.9,0.8905107]
[1717501856404,3.98030758,3765.0,3764.9,0.0835107]
[1717501856607,4.91957834,3765.0,3764.9,0.8905107]
[1717501856845,4.91957834,3765.0,3764.9,0.807]
[1717501857000,4.91957834,3765.0,3764.9,0.89049418]
[1717501860435,3.98030758,3765.0,3764.9,0.89049418]
[1717501862004,3.98030758,3765.0,3764.9,0.08349418]
[1717501862441,3.98030758,3765.0,3764.9,0.807]
[1717501862628,3.98030758,3765.0,3764.9,0.89049418]
[1717501864348,1.32424758,3765.0,3764.9,0.89049418]
[1717501864648,0.57420556,3765.1,3764.9,4.36594078]
[1717501864876,0.57420556,3765.2,3765.0,0.807]
[1717501865146,2.4235,3765.9,3765.1,3.19832831]
[1717501865147,2.65563,3765.6,3765.1,3.19832831]
[1717501865355,2.65563,3765.6,3765.5,0.807]
[1717501865755,3.40563,3765.6,3765.5,0.89043637]
[1717501866728,2.65563,3765.6,3765.5,0.89043637]
[1717501867311,2.65541,3765.9,3765.5,0.89043637]
[1717501867507,2.65541,3765.9,3765.8,0.807]
[1717501867713,3.40541,3765.9,3765.8,0.807]
[1717501867950,3.40541,3765.9,3765.8,0.88990786]
[1717501868169,0.75,3765.9,3765.8,0.88990786]
[1717501868323,2.6552,3766.2,3765.8,0.88990786]
[1717501868523,3.4052,3766.2,3766.1,0.807]
[1717501868718,3.4052,3766.2,3766.1,0.88974276]
[1717501868919,2.6552,3766.2,3766.1,0.88974276]
[1717501870758,2.65499,3766.5,3766.1,0.88974276]
[1717501871055,3.75,3766.4,3766.1,0.08274276]
[1717501871257,3.75,3766.4,3766.3,0.807]
[1717501871567,3.75,3766.4,3766.3,0.88969323]
[1717501873361,3.75,3766.4,3766.3,0.08269323]
[1717501873569,8.81575,3766.4,3766.3,0.807]
[1717501873932,2.65534,3766.0,3765.3,1.93814432]
[1717501874264,2.65534,3766.0,3765.9,0.807]
[1717501874474,3.40534,3766.0,3765.9,0.807]
[1717501875332,3.40534,3766.0,3765.0,1.93831501]
[1717501875546,3.40534,3766.0,3765.9,0.0771985]
[1717501875779,3.745874,3766.0,3765.9,0.807]
[1717501875925,3.40534,3766.0,3765.9,0.807]
[1717501876120,3.40534,3766.0,3765.9,0.8841985]
[1717501884976,2.65534,3766.0,3765.9,0.8841985]
[1717501903935,2.65534,3766.0,3765.9,0.0771985]
[1717501904096,2.65534,3766.0,3765.9,0.8841985]
[1717501904297,2.65534,3766.0,3765.9,0.807]
[1717501904611,2.65534,3766.0,3765.9,0.86554482]
[1717501907538,2.65534,3766.0,3765.9,0.05854482]
[1717501907736,2.65534,3766.0,3765.9,0.86554482]
[1717501907912,2.65534,3766.0,3765.4,2.4763]
[1717501908108,2.65534,3766.0,3765.9,0.85972553]
[1717501910275,4.97244,3766.0,3765.9,0.85972553]
[1717501910419,5.72244,3766.0,3765.9,0.05272553]
[1717501910613,5.72244,3766.0,3765.9,0.807]
[1717501910852,5.72244,3766.0,3765.9,0.85973378]
[1717501911255,5.72244,3766.0,3765.9,1.78268557]
[1717501914264,5.72244,3766.0,3765.9,3.16711253]
[1717501918065,5.72244,3766.0,3765.9,3.16711768]
[1717501920581,6.294684,3766.0,3765.9,2.36011768]
[1717501920752,9.294684,3766.0,3765.9,0.05273378]
[1717501920957,13.27128977,3766.0,3765.9,0.05273378]
[1717501921182,2.6559,3765.2,3764.9,0.55379804]
[1717501921357,2.6559,3765.2,3765.1,0.807]
[1717501921740,3.4059,3765.2,3765.1,0.807]
[1717501921941,3.4059,3765.2,3765.1,0.85975441]
[1717501923690,3.97278,3765.2,3765.1,0.05275441]
[1717501923856,6.97278,3765.2,3765.1,0.05275441]
[1717501924055,6.97278,3765.2,3764.0,1.93861735]
[1717501924366,3.05015195,3765.1,3765.0,0.807]
[1717501924568,4.27873515,3765.1,3765.0,0.807]
[1717501926997,4.2285832,3765.1,3765.0,0.807]
[1717501928959,2.65658,3764.3,3763.6,7.32]
[1717501929159,5.54984897,3765.1,3763.5,2.98969804]
[1717501929160,0.05015195,3764.2,3763.7,0.05376152]
[1717501929500,2.4297,3764.4,3763.5,2.4359]
[1717501929703,2.4297,3764.4,3764.3,0.807]
[1717501930202,5.83616,3764.4,3764.3,0.807]
[1717501931056,2.65692,3763.8,3763.2,2.3143]
[1717501931459,2.65692,3763.8,3763.3,0.05196947]
[1717501931655,2.65692,3763.8,3763.7,0.807]
[1717501931891,2.65692,3763.8,3763.7,0.85896947]
[1717501931892,3.40692,3763.8,3763.7,0.85896947]
[1717501932267,2.65713,3763.5,3763.2,2.3143]
[1717501932483,2.65713,3763.5,3763.4,0.807]
[1717501934865,5.65648,3764.4,3763.4,3.1152]
[1717501934866,2.4417,3764.3,3763.4,3.1152]
[1717501935076,9.9762,3764.8,3763.4,3.1152]
[1717501935077,0.75,3763.8,3763.5,0.05196947]
[1717501935286,0.75,3763.8,3763.7,0.807]
[1717501935576,2.65669,3764.1,3763.7,3.1136]
[1717501935782,2.65669,3764.1,3764.0,0.807]
[1717501935997,2.65643,3764.5,3764.0,0.807]
[1717501936181,2.65643,3764.5,3764.4,0.807]
[1717501936770,2.65643,3764.5,3764.4,0.85932463]
[1717501936975,3.40643,3764.5,3764.4,0.85932463]
[1717501937432,3.40643,3764.5,3764.4,0.807]
[1717501937601,3.40643,3764.5,3764.4,0.85758048]
[1717501938629,3.40643,3764.5,3764.4,0.807]
[1717501940715,2.65661,3764.2,3763.7,2.3066]
[1717501940916,2.65661,3764.2,3764.1,0.807]
[1717501941790,2.65661,3764.2,3764.1,0.85436948]
[1717501941992,2.65661,3764.2,3764.1,0.04736948]
[1717501942201,3.40661,3764.2,3764.1,0.85436948]
[1717501948238,2.65661,3764.2,3764.1,0.85436948]
[1717501953978,2.65661,3764.2,3764.1,0.04736948]
[1717501954131,3.40661,3764.2,3764.1,0.85436948]
[1717501954314,3.40661,3764.2,3764.1,0.807]
[1717501954518,3.40661,3764.2,3764.1,0.85126415]
[1717501957627,3.40661,3764.2,3764.1,0.807]
[1717501957805,0.75,3764.2,3764.1,3.129]
[1717501958149,2.65637,3764.6,3764.1,3.48616416]
[1717501958348,0.75,3764.5,3764.1,2.67916416]
[1717501958507,2.65637,3764.6,3764.4,0.807]
[1717501958849,3.40637,3764.6,3764.4,0.807]
[1717501959031,3.40637,3764.6,3764.5,0.04426416]
[1717501961016,3.40637,3764.6,3764.5,0.807]
[1717501961452,3.40637,3764.6,3764.5,0.04278868]
[1717501961749,2.65657,3764.3,3763.3,2.3445]
[1717501961915,2.65657,3764.3,3764.2,0.807]
[1717501962553,2.65675,3764.0,3763.3,2.3445]
[1717501962852,2.65675,3764.0,3763.9,0.807]
[1717501963450,2.65675,3764.0,3763.9,0.84978868]
[1717501972654,2.65675,3764.0,3763.9,1.77320929]
[1717501973085,2.65675,3764.0,3763.9,0.84978868]
[1717501973455,2.65675,3764.0,3763.9,1.77322082]
[1717501976158,2.65675,3764.0,3763.9,0.96622082]
[1717501976358,2.65675,3764.0,3763.9,0.84978868]
[1717501977285,2.65675,3764.0,3763.9,1.77323571]
[1717501977598,2.65675,3764.0,3763.9,0.84978868]
[1717501978461,2.65675,3764.0,3763.9,3.15841801]
[1717501978795,2.65675,3764.0,3763.9,2.14445271]
[1717501979003,2.65675,3764.0,3763.9,3.52963962]
[1717501979183,2.65675,3764.0,3763.9,2.14441891]
[1717501979382,2.65675,3764.0,3763.9,3.52953185]
[1717501979556,2.65675,3764.0,3763.9,2.14441891]
[1717501979760,2.65675,3764.0,3763.9,3.52953185]
[1717501980001,2.65675,3764.0,3763.9,2.14441891]
[1717501980300,2.65675,3764.0,3763.9,3.52953185]
[1717501981489,2.65655,3764.3,3763.9,3.52953185]
[1717501981686,2.65655,3764.3,3764.2,0.807]
[1717501981891,2.65655,3764.3,3764.2,0.84305105]
[1717501986022,2.65655,3764.3,3764.2,1.76643719]
[1717501986676,2.65633,3764.6,3764.2,2.13696864]
[1717501986966,5.31,3764.8,3764.3,4.65713239]
[1717501987118,6.06,3764.8,3764.7,0.807]
[1717501987314,5.31,3764.8,3764.7,0.84063525]
[1717501988317,5.31,3764.8,3764.7,0.03363525]
[1717501988616,5.31,3764.8,3764.7,0.807]
[1717501989043,5.31,3764.8,3764.7,0.84063525]
[1717501996338,2.6561,3765.0,3764.7,0.84063525]
[1717501996531,3.75,3764.9,3764.7,0.03363525]
[1717501996779,3.75,3764.9,3764.8,0.807]
[1717501996954,3.75,3764.9,3764.8,0.84063525]
[1717501998166,0.75,3764.9,3764.8,0.84063525]
[1717501999069,2.6561,3765.0,3764.8,0.84063525]
[1717501999472,3.4061,3765.0,3764.8,0.84063525]
[1717502002958,3.4061,3765.0,3764.8,0.03363525]
[1717502003168,3.4061,3765.0,3764.9,0.807]
[1717502003507,3.4061,3765.0,3764.9,0.84038747]
[1717502006547,5.8737,3765.0,3764.9,0.84038747]
[1717502007092,5.8737,3765.0,3764.9,0.807]
[1717502007513,3.4061,3765.0,3764.9,0.807]
[1717502007788,3.4061,3765.0,3764.9,0.84038747]
[1717502014193,3.4061,3765.0,3764.9,0.03338747]
[1717502014394,3.4061,3765.0,3764.9,0.84038747]
[1717502014582,3.4061,3765.0,3764.4,2.4551]
[1717502014776,3.4061,3765.0,3764.9,0.03338333]
[1717502014971,3.4061,3765.0,3764.9,0.807]
[1717502015302,3.4061,3765.0,3764.9,0.84038333]
[1717502021174,3.4061,3765.0,3764.9,0.03338333]
[1717502021374,3.4061,3765.0,3764.9,0.84038333]
[1717502021605,3.4061,3765.0,3764.9,0.807]
[1717502021770,3.4061,3765.0,3764.9,0.84032553]
[1717502025772,0.75,3765.0,3764.9,3.15082553]
[1717502025990,2.65584,3765.3,3764.9,3.46590808]
[1717502026218,2.65584,3765.3,3765.2,0.807]
[1717502027237,2.65584,3765.3,3765.2,0.8398122]
[1717502033238,2.65584,3765.3,3765.2,0.0328122]
[1717502033415,2.65584,3765.3,3765.2,0.8398122]
[1717502033596,2.65584,3765.3,3765.2,0.807]
[1717502033797,2.65584,3765.3,3765.2,0.83970897]
[1717502038640,9.97517,3766.3,3765.2,0.83970897]
[1717502038641,0.75,3765.6,3765.3,2.4454]
[1717502038853,9.6706,3766.3,3765.5,0.807]
[1717502039054,9.6706,3766.3,3766.2,0.807]
[1717502039055,5.00572,3766.3,3766.2,0.807]
[1717502039412,5.75572,3766.3,3766.2,0.807]
[1717502040149,8.75572,3766.3,3766.2,0.807]
[1717502042347,2.65536,3766.0,3765.3,2.99919804]
[1717502042660,3.0,3765.9,3765.4,0.03248601]
[1717502042959,3.0,3765.9,3765.8,0.807]
[1717502043257,3.0,3765.9,3765.8,0.83924661]
[1717502048346,3.0,3766.2,3765.8,0.83924661]
[1717502048550,0.75,3766.0,3765.8,0.03224661]
[1717502048735,3.0,3766.2,3765.9,0.807]
[1717502048961,3.0,3766.2,3765.4,1.38443687]
[1717502048962,0.75,3766.1,3766.0,0.03206498]
[1717502049265,0.75,3766.1,3766.0,0.807]
[1717502049557,0.75,3766.1,3766.0,0.83900308]
[1717502080074,0.75,3766.2,3766.0,0.83900308]
[1717502080241,0.75,3766.2,3766.1,0.807]
[1717502080777,0.75,3766.2,3766.1,0.83874722]
[1717502091183,10.95491,3766.6,3766.1,1.76167516]
[1717502091355,6.05,3766.6,3766.5,0.807]
[1717502091542,5.3,3766.6,3766.5,0.807]
[1717502091747,5.3,3766.6,3766.5,0.83865643]
[1717502091942,5.3,3766.6,3766.5,1.76145801]
[1717502092187,5.3,3766.6,3766.5,0.83865643]
[1717502092344,5.3,3766.6,3766.5,1.76145741]
[1717502092542,5.3,3766.6,3766.5,0.83865643]
[1717502092954,5.3,3766.6,3766.5,1.7614578]
[1717502093143,5.3,3766.6,3766.5,0.03165643]
[1717502093365,5.3,3766.6,3766.5,0.807]
[1717502093683,5.3,3766.6,3766.5,0.83865643]
[1717502095576,5.3,3766.6,3766.5,1.22764188]
[1717502097492,5.3,3766.6,3766.5,0.42064188]
[1717502097790,5.3,3766.6,3766.5,0.03165643]
[1717502098109,5.3,3766.6,3766.5,0.807]
[1717502098293,5.3,3766.6,3766.5,0.83845013]
[1717502106328,2.65484,3766.8,3766.5,0.83845013]
[1717502106534,3.0,3766.7,3766.5,0.03145013]
[1717502106740,3.0,3766.7,3766.6,0.807]
[1717502107114,3.0,3766.7,3766.6,0.83845013]
[1717502107938,3.0,3766.7,3766.6,0.03145013]
[1717502108103,3.0,3766.7,3766.6,0.83845013]
[1717502108306,3.0,3766.7,3766.6,0.807]
[1717502108503,3.0,3766.7,3766.6,0.83845013]
[1717502114459,2.65484,3766.8,3766.6,0.83845013]
[1717502114612,3.40484,3766.8,3766.6,0.83845013]
[1717502114813,3.0,3766.7,3766.6,0.83845013]
[1717502121260,3.0,3766.7,3766.6,0.03145013]
[1717502121449,3.0,3766.7,3766.6,0.807]
[1717502121613,3.0,3766.7,3766.6,0.83832224]
[1717502135236,3.0,3766.7,3766.6,0.03132224]
[1717502135588,3.0,3766.7,3766.6,0.807]
[1717502135791,3.0,3766.7,3766.6,0.83829336]
[1717502146804,2.65484,3766.8,3766.6,1.76110414]
[1717502147103,2.65484,3766.8,3766.6,0.83829336]
[1717502151225,2.65484,3766.8,3766.7,0.807]
[1717502151611,2.65484,3766.8,3766.7,0.838248]
[1717502152039,2.65484,3766.8,3766.7,1.76103008]
[1717502153425,2.65484,3766.8,3766.7,1.76101855]
[1717502154144,2.65484,3766.8,3766.7,1.76101511]
[1717502154516,2.65484,3766.8,3766.7,3.14513235]
[1717502156351,2.65484,3766.8,3766.7,1.76101511]
[1717502156652,2.65484,3766.8,3766.7,0.031248]
[1717502156859,2.65484,3766.8,3766.6,1.38417367]
[1717502157067,2.65484,3766.8,3766.5,2.2809]
[1717502157068,2.65484,3766.8,3766.7,1.72977276]
[1717502157271,2.65484,3766.8,3766.7,1.75893756]
[1717502160220,2.65484,3766.8,3766.7,1.7589264]
[1717502160450,3.0,3767.1,3766.7,1.7589264]
[1717502160654,3.0,3767.1,3767.0,0.807]
[1717502160959,3.75,3767.1,3767.0,0.83415104]
[1717502163522,3.75,3767.1,3767.0,0.02715104]
[1717502163857,3.75,3767.1,3767.0,0.83415104]
[1717502164160,3.75,3767.1,3767.0,0.8342624]
[1717502167840,2.65455,3767.2,3767.0,0.8342624]
[1717502168242,0.75,3767.1,3767.0,0.8342624]
[1717502168560,2.65455,3767.2,3767.0,0.8342624]
[1717502169176,0.75,3767.1,3767.0,0.8342624]
[1717502171774,0.75,3767.1,3767.0,0.0272624]
[1717502172087,0.75,3767.1,3767.0,0.807]
[1717502172259,0.75,3767.1,3767.0,0.83416754]
[1717502173778,2.65455,3767.2,3767.0,0.83416754]
[1717502173977,3.40455,3767.2,3767.0,0.83416754]
[1717502176566,3.40455,3767.2,3767.0,0.02716754]
[1717502176771,3.40455,3767.2,3767.1,0.807]
[1717502176951,6.40455,3767.2,3767.1,0.807]
[1717502177152,6.40455,3767.2,3767.1,0.83416754]
[1717502184468,6.40455,3767.2,3767.1,0.02716754]
[1717502184667,2.65468,3767.0,3766.6,1.38406943]
[1717502184879,2.65468,3767.0,3766.9,0.807]
[1717502185393,2.65468,3767.0,3766.9,0.83416754]
[1717502186100,2.65468,3767.0,3766.9,0.02716754]
[1717502186303,2.65468,3767.0,3766.9,0.807]
[1717502186454,2.65468,3767.0,3766.9,0.83321655]
[1717502195405,2.65468,3767.0,3766.9,1.75595381]
[1717502196693,2.65468,3767.0,3766.9,0.83321655]
[1717502196892,2.65468,3767.0,3766.9,1.75595149]
[1717502197411,2.65468,3767.0,3766.9,0.94895149]
[1717502197614,2.65468,3767.0,3766.9,1.75595149]
[1717502203337,2.65468,3767.0,3766.9,1.75596417]
[1717502204804,2.65468,3767.0,3766.9,3.14008377]
[1717502205829,2.65468,3767.0,3766.9,1.75596417]
[1717502209352,2.65468,3767.0,3766.9,3.14008757]
[1717502209675,2.65468,3767.0,3766.9,1.75596417]
[1717502211964,2.65468,3767.0,3766.9,3.14008362]
[1717502215240,2.65468,3767.0,3766.9,3.14008023]
[1717502221416,2.65468,3767.0,3766.9,2.33308023]
[1717502221737,15.19027377,3767.0,3766.9,0.94896202]
[1717502221876,16.49027377,3767.0,3766.9,0.02621655]
[1717502222279,2.65533,3766.0,3765.9,7.32]
[1717502222471,2.65533,3766.0,3765.9,9.05000433]
[1717502222913,2.65533,3766.0,3765.9,9.07602925]